[Event "12th Arad Open 2019"]
[Site "Arad"]
[Date "2019.07.27"]
[Round "5.14"]
[White "Visanescu, Daria-Ioana"]
[Black "Ahlander, Bjorn"]
[Result "1-0"]
[ECO "B22"]
[WhiteElo "2079"]
[BlackElo "2391"]
[Annotator "NA"]
[PlyCount "115"]
[EventDate "2019.07.24"]
[EventType "swiss"]
[EventCountry "ROU"]
[SourceTitle "playchess.com"]
[Source "ChessBase"]
[SourceQuality "1"]
[TimeControl "40/5400+30:900+30"]

1. e4 {[%emt 0:06:15]} c5 {[%emt 0:00:00]} 2. c3 {[%emt 0:00:13]} d6 {[%emt 0:01:44]} 3. d4 {[%emt 0:00:33]} Nf6 {[%emt 0:00:04]} 4. Bd3 {[%emt 0:00:52]} Nc6 {[%emt 0:00:43]} 5. Nf3 {[%emt 0:06:17]} e6 {[%emt 0:07:47]} 6. O-O {[%emt 0:01:06]} Be7 {[%emt 0:00:03]} 7. Re1 {[%emt 0:01:29]} O-O {[%emt 0:00:55]} 8. dxc5 {[%emt 0:01:16]} dxc5 {[%emt 0:00:24]} 9. e5 {[%emt 0:00:31]} Nd7 {[%emt 0:02:51]} 10. Bc2 {[%emt 0:03:18]} Qc7 {[%emt 0:09:20]} 11. Qe2 {[%emt 0:01:37]} Rd8 {[%emt 0:05:10]} 12. Bf4 {[%emt 0:09:51]} Nf8 {[%emt 0:16:38]} 13. Nbd2 {[%emt 0:02:34]} b6 {[%emt 0:03:03]} 14. Ne4 {[%emt 0:06:33]} Bb7 {[%emt 0:03:50]} 15. Nd6 {[%emt 0:05:19]} a6 {[%emt 0:01:02]} 16. Rad1 {[%emt 0:04:53]} Rab8 {[%emt 0:02:15]} 17. Ng5 {[%emt 0:08:59]} Bxd6 {[%emt 0:06:46]} 18. exd6 {[%emt 0:00:33]} Qd7 {[%emt 0:00:02]} 19. Qh5 {[%emt 0:07:33]} h6 {[%emt 0:04:35]} 20. Ne4 {[%emt 0:04:36]} f5 {[%emt 0:00:41]} 21. Nd2 {[%emt 0:09:57]} Qf7 {[%emt 0:03:10]} 22. Qxf7+ {[%emt 0:02:28]} Kxf7 {[%emt 0:00:03]} 23. d7 {[%emt 0:02:04]} e5 {[%emt 0:03:27]} 24. Bxe5 {[%emt 0:01:46]} Nxe5 {[%emt 0:00:02]} 25. Rxe5 {[%emt 0:00:05]} g6 {[%emt 0:00:06]} 26. Nc4 {[%emt 0:05:56]} Rxd7 {[%emt 0:03:38]} 27. Rde1 {[%emt 0:00:13]} Bd5 {[%emt 0:02:40]} 28. Bb3 {[%emt 0:00:33]} Kf6 {[%emt 0:07:22]} 29. h4 {[%emt 0:00:38]} Be4 {[%emt 0:03:45]} 30. f4 {[%emt 0:03:21]} g5 {[%emt 0:02:36]} 31. hxg5+ {[%emt 0:00:41]} hxg5 {[%emt 0:00:03]} 32. fxg5+ {[%emt 0:00:21]} Kg6 {[%emt 0:02:46]} 33. g4 {[%emt 0:01:55]} Bd3 {[%emt 0:04:04]} 34. gxf5+ {[%emt 0:00:18]} Kxg5 {[%emt 0:01:21]} 35. Ne3 {[%emt 0:00:59]} Rbd8 {[%emt 0:01:29]} 36. Kf2 {[%emt 0:00:58]} c4 {[%emt 0:01:49]} 37. Bxc4 {[%emt 0:01:20]} Bxc4 {[%emt 0:00:19]} 38. Nxc4 {[%emt 0:00:04]} b5 {[%emt 0:00:34]} 39. Ne3 {[%emt 0:00:31]} Rh7 {[%emt 0:00:33]} 40. Kg3 {[%emt 0:00:00]} Rd3 {[%emt 0:00:00]} 41. Re8 {[%emt 0:05:55]} Nd7 {[%emt 0:00:44]} 42. Rg8+ {[%emt 0:00:47]} Kf6 {[%emt 0:00:19]} 43. Kf4 {[%emt 0:00:28]} Rh4+ {[%emt 0:02:02]} 44. Ng4+ {[%emt 0:00:13]} Kf7 {[%emt 0:00:07]} 45. Rg6 {[%emt 0:02:49]} a5 {[%emt 0:06:36]} 46. Kg5 {[%emt 0:01:08]} Rh8 {[%emt 0:00:02]} 47. Nh6+ {[%emt 0:04:56]} Kf8 {[%emt 0:00:05]} 48. Rge6 {[%emt 0:00:29]} Rg8+ {[%emt 0:08:14]} 49. Nxg8 {[%emt 0:00:21]} Kxg8 {[%emt 0:00:02]} 50. Re8+ {[%emt 0:01:00]} Nf8 {[%emt 0:00:03]} 51. Kf6 {[%emt 0:00:46]} Rd6+ {[%emt 0:00:39]} 52. R1e6 {[%emt 0:00:25]} Rd7 {[%emt 0:00:28]} 53. Ra6 {[%emt 0:01:27]} Rf7+ {[%emt 0:00:41]} 54. Kg5 {[%emt 0:00:40]} b4 {[%emt 0:00:35]} 55. Raa8 {[%emt 0:00:29]} bxc3 {[%emt 0:00:04]} 56. bxc3 {[%emt 0:00:07]} Kg7 {[%emt 0:00:07]} 57. Rxf8 {[%emt 0:00:26]} Rd7 {[%emt 0:01:04]} 58. f6+ {[%emt 0:00:15]} 1-0

[Event "12th Arad Open 2019"]
[Site "Arad"]
[Date "2019.07.27"]
[Round "5.15"]
[White "Peptan, Corina-Isabela"]
[Black "Luca, Ionel"]
[Result "1-0"]
[ECO "E19"]
[WhiteElo "2375"]
[BlackElo "2039"]
[Annotator "NA"]
[PlyCount "65"]
[EventDate "2019.07.24"]
[EventType "swiss"]
[EventCountry "ROU"]
[SourceTitle "playchess.com"]
[Source "ChessBase"]
[SourceQuality "1"]
[TimeControl "40/5400+30:900+30"]

1. d4 {[%emt 0:02:20]} Nf6 {[%emt 0:00:00]} 2. c4 {[%emt 0:00:10]} e6 {[%emt 0:01:03]} 3. Nf3 {[%emt 0:00:05]} b6 {[%emt 0:00:33]} 4. g3 {[%emt 0:01:15]} Bb7 {[%emt 0:00:14]} 5. Bg2 {[%emt 0:00:02]} Be7 {[%emt 0:01:30]} 6. O-O {[%emt 0:01:35]} O-O {[%emt 0:00:39]} 7. Nc3 {[%emt 0:00:13]} Ne4 {[%emt 0:00:18]} 8. Qc2 {[%emt 0:02:49]} Nxc3 {[%emt 0:03:09]} 9. Qxc3 {[%emt 0:00:07]} a5 {[%emt 0:05:12]} 10. Rd1 {[%emt 0:02:44]} Na6 {[%emt 0:04:47]} 11. Bf4 {[%emt 0:09:13]} g5 {[%emt 0:09:11]} 12. Be3 {[%emt 0:03:34]} Ra7 {[%emt 0:07:27]} 13. d5 {[%emt 0:03:16]} exd5 {[%emt 0:02:41]} 14. cxd5 {[%emt 0:00:28]} Nb4 {[%emt 0:14:13]} 15. Nd4 {[%emt 0:13:08]} Bf6 {[%emt 0:11:36]} 16. Qb3 {[%emt 0:00:28]} d6 {[%emt 0:03:00]} 17. Rac1 {[%emt 0:10:57]} Na6 {[%emt 0:02:24]} 18. Nb5 {[%emt 0:04:32]} Ra8 {[%emt 0:03:59]} 19. Nxc7 {[%emt 0:00:44]} Nxc7 {[%emt 0:05:22]} 20. Bxb6 {[%emt 0:03:24]} Rc8 {[%emt 0:03:55]} 21. Bxa5 {[%emt 0:00:18]} Ba6 {[%emt 0:06:12]} 22. Bh3 {[%emt 0:03:24]} Bxe2 {[%emt 0:00:55]} 23. Bxc8 {[%emt 0:00:13]} Qxc8 {[%emt 0:03:55]} 24. Re1 {[%emt 0:00:30]} Qf5 {[%emt 0:03:35]} 25. Rxe2 {[%emt 0:02:06]} Nxd5 {[%emt 0:00:42]} 26. Bd2 {[%emt 0:00:08]} Bd4 {[%emt 0:01:44]} 27. Qc2 {[%emt 0:08:16]} Qf3 {[%emt 0:01:55]} 28. Bxg5 {[%emt 0:01:40]} Nb4 {[%emt 0:00:35]} 29. Qe4 {[%emt 0:00:29]} Bxf2+ {[%emt 0:01:50]} 30. Kf1 {[%emt 0:00:01]} Qxe4 {[%emt 0:00:26]} 31. Rxe4 {[%emt 0:00:05]} Bc5 {[%emt 0:00:12]} 32. Bh6 {[%emt 0:00:43]} f5 {[%emt 0:01:07]} 33. Rxb4 {[%emt 0:00:32]} 1-0

[Event "12th Arad Open 2019"]
[Site "Arad"]
[Date "2019.07.27"]
[Round "5.16"]
[White "Aciu, Malina-Andreea"]
[Black "Bogdan, Dan"]
[Result "1-0"]
[ECO "B12"]
[WhiteElo "2047"]
[BlackElo "2370"]
[Annotator "NA"]
[PlyCount "33"]
[EventDate "2019.07.24"]
[EventType "swiss"]
[EventCountry "ROU"]
[SourceTitle "playchess.com"]
[Source "ChessBase"]
[SourceQuality "1"]
[TimeControl "40/5400+30:900+30"]

1. e4 {[%emt 0:00:00]} c6 {[%emt 0:38:58]} 2. d4 {[%emt 0:00:00]} d5 {[%emt 0:00:04]} 3. Nd2 {[%emt 0:00:00]} g6 {[%emt 0:00:10]} 4. Ngf3 {[%emt 0:00:00]} Bg7 {[%emt 0:00:04]} 5. c3 {[%emt 0:00:00]} Nh6 {[%emt 0:00:23]} 6. Bd3 {[%emt 0:00:08]} f6 {[%emt 0:00:03]} 7. O-O {[%emt 0:00:12]} Nf7 {[%emt 0:00:01]} 8. Re1 {[%emt 0:00:17]} O-O {[%emt 0:00:19]} 9. h4 {[%emt 0:00:18]} e5 {[%emt 0:01:47]} 10. h5 {[%emt 0:26:00]} dxe4 {[%emt 0:11:19]} 11. Nxe4 {[%emt 0:02:07]} f5 {[%emt 0:01:15]} 12. Neg5 {[%emt 0:01:00]} e4 {[%emt 0:00:17]} 13. Bc4 {[%emt 0:01:16]} exf3 {[%emt 0:00:20]} 14. Qb3 {[%emt 0:17:15]} Qc7 {[%emt 0:03:30]} 15. Bxf7+ {[%emt 0:11:46]} Rxf7 {[%emt 0:00:26]} 16. Re8+ {[%emt 0:00:29]} Bf8 {[%emt 0:00:06]} 17. Bf4 {[%emt 0:01:08]} 1-0

[Event "12th Arad Open 2019"]
[Site "Arad"]
[Date "2019.07.27"]
[Round "5.17"]
[White "Balan, Bogdan"]
[Black "Marjanovic, Annamaria"]
[Result "0-1"]
[ECO "E20"]
[WhiteElo "2036"]
[BlackElo "2343"]
[Annotator "NA"]
[PlyCount "88"]
[EventDate "2019.07.24"]
[EventType "swiss"]
[EventCountry "ROU"]
[SourceTitle "playchess.com"]
[Source "ChessBase"]
[SourceQuality "1"]
[TimeControl "40/5400+30:900+30"]

1. d4 {[%emt 0:02:16]} e6 {[%emt 0:00:15]} 2. c4 {[%emt 0:00:52]} Nf6 {[%emt 0:00:08]} 3. Nc3 {[%emt 0:00:05]} Bb4 {[%emt 0:00:13]} 4. Bd2 {[%emt 0:00:13]} b6 {[%emt 0:02:19]} 5. Nf3 {[%emt 0:00:10]} Bb7 {[%emt 0:00:12]} 6. e3 {[%emt 0:00:35]} Bxc3 {[%emt 0:01:51]} 7. Bxc3 {[%emt 0:00:12]} Ne4 {[%emt 0:00:35]} 8. Rc1 {[%emt 0:00:27]} d6 {[%emt 0:01:08]} 9. Bd3 {[%emt 0:00:37]} f5 {[%emt 0:02:45]} 10. O-O {[%emt 0:02:26]} O-O {[%emt 0:01:15]} 11. Nd2 {[%emt 0:04:50]} Nxc3 {[%emt 0:12:16]} 12. Rxc3 {[%emt 0:02:29]} Nc6 {[%emt 0:01:47]} 13. Be2 {[%emt 0:02:51]} Ne7 {[%emt 0:06:35]} 14. f4 {[%emt 0:06:16]} Ng6 {[%emt 0:01:40]} 15. Bf3 {[%emt 0:00:23]} Bxf3 {[%emt 0:01:10]} 16. Nxf3 {[%emt 0:04:17]} Qe7 {[%emt 0:01:30]} 17. g3 {[%emt 0:20:23]} Rad8 {[%emt 0:15:11]} 18. d5 {[%emt 0:05:50]} e5 {[%emt 0:01:48]} 19. Ng5 {[%emt 0:00:31]} Rf6 {[%emt 0:01:25]} 20. Qa4 {[%emt 0:03:16]} a5 {[%emt 0:03:42]} 21. Ne6 {[%emt 0:03:22]} Rc8 {[%emt 0:02:15]} 22. Qc6 {[%emt 0:00:57]} Nf8 {[%emt 0:03:58]} 23. Nxf8 {[%emt 0:10:39]} Rfxf8 {[%emt 0:03:25]} 24. a3 {[%emt 0:00:38]} exf4 {[%emt 0:09:15]} 25. exf4 {[%emt 0:00:07]} Qe4 {[%emt 0:02:26]} 26. Rcf3 {[%emt 0:03:10]} Rfe8 {[%emt 0:00:47]} 27. b4 {[%emt 0:00:32]} axb4 {[%emt 0:02:52]} 28. axb4 {[%emt 0:00:01]} Re7 {[%emt 0:00:52]} 29. Kg2 {[%emt 0:02:58]} Rce8 {[%emt 0:00:39]} 30. Ra1 {[%emt 0:03:58]} Qd4 {[%emt 0:05:26]} 31. Ra8 {[%emt 0:06:53]} Rxa8 {[%emt 0:00:30]} 32. Qxa8+ {[%emt 0:00:02]} Kf7 {[%emt 0:00:07]} 33. Qc8 {[%emt 0:02:58]} g6 {[%emt 0:01:32]} 34. Rf2 {[%emt 0:00:29]} Qxc4 {[%emt 0:03:10]} 35. Qh8 {[%emt 0:00:26]} Qxd5+ {[%emt 0:00:08]} 36. Kh3 {[%emt 0:00:06]} Qe6 {[%emt 0:01:50]} 37. Qxh7+ {[%emt 0:01:13]} Ke8 {[%emt 0:00:11]} 38. Qh8+ {[%emt 0:00:16]} Kd7 {[%emt 0:00:04]} 39. Rc2 {[%emt 0:01:59]} Qe4 {[%emt 0:01:02]} 40. Ra2 {[%emt 0:00:00]} Re8 {[%emt 0:00:00]} 41. Qg7+ {[%emt 0:00:55]} Qe7 {[%emt 0:10:57]} 42. Qxg6 {[%emt 0:00:53]} Rh8+ {[%emt 0:00:43]} 43. Kg2 {[%emt 0:00:01]} Qe4+ {[%emt 0:00:07]} 44. Kg1 {[%emt 0:00:52]} Qb1+ {[%emt 0:00:06]} 0-1

[Event "12th Arad Open 2019"]
[Site "Arad"]
[Date "2019.07.27"]
[Round "5.18"]
[White "Marjanovic, Gyorgy"]
[Black "Patrascu, Catalin-Lucian"]
[Result "0-1"]
[ECO "B31"]
[WhiteElo "2026"]
[BlackElo "2292"]
[Annotator "NA"]
[PlyCount "54"]
[EventDate "2019.07.24"]
[EventType "swiss"]
[EventCountry "ROU"]
[SourceTitle "playchess.com"]
[Source "ChessBase"]
[SourceQuality "1"]
[TimeControl "40/5400+30:900+30"]

1. e4 {[%emt 0:00:00]} c5 {[%emt 0:00:00]} 2. Nf3 {[%emt 0:00:00]} Nc6 {[%emt 0:00:00]} 3. Bb5 {[%emt 0:00:00]} g6 {[%emt 0:01:37]} 4. Bxc6 {[%emt 0:00:00]} dxc6 {[%emt 0:00:42]} 5. d3 {[%emt 0:00:57]} Bg7 {[%emt 0:00:40]} 6. O-O {[%emt 0:00:24]} Bg4 {[%emt 0:03:20]} 7. h3 {[%emt 0:00:22]} Bxf3 {[%emt 0:00:07]} 8. Qxf3 {[%emt 0:00:06]} Nf6 {[%emt 0:03:42]} 9. Nc3 {[%emt 0:01:57]} Nd7 {[%emt 0:07:27]} 10. Be3 {[%emt 0:04:36]} e5 {[%emt 0:02:47]} 11. Qg3 {[%emt 0:05:04]} O-O {[%emt 0:04:05]} 12. Ne2 {[%emt 0:04:32]} Qe7 {[%emt 0:03:33]} 13. Rae1 {[%emt 0:05:55]} Rfe8 {[%emt 0:09:56]} 14. b3 {[%emt 0:01:50]} b6 {[%emt 0:04:05]} 15. Bg5 {[%emt 0:06:31]} Qd6 {[%emt 0:08:30]} 16. f4 {[%emt 0:12:16]} exf4 {[%emt 0:05:09]} 17. Qxf4 {[%emt 0:00:40]} Qxf4 {[%emt 0:00:54]} 18. Bxf4 {[%emt 0:00:13]} Nf8 {[%emt 0:02:36]} 19. Bd2 {[%emt 0:01:41]} Ne6 {[%emt 0:00:47]} 20. Be3 {[%emt 0:05:39]} Rad8 {[%emt 0:02:20]} 21. a4 {[%emt 0:01:12]} a6 {[%emt 0:11:38]} 22. g4 {[%emt 0:00:59]} b5 {[%emt 0:01:51]} 23. Bd2 {[%emt 0:04:05]} c4 {[%emt 0:04:14]} 24. Rf3 {[%emt 0:02:25]} cxd3 {[%emt 0:03:29]} 25. Rxd3 {[%emt 0:03:46]} Rxd3 {[%emt 0:02:56]} 26. cxd3 {[%emt 0:00:04]} Nc5 {[%emt 0:01:09]} 27. axb5 {[%emt 0:01:17]} Nxd3 {[%emt 0:02:07]} 0-1

[Event "12th Arad Open 2019"]
[Site "Arad"]
[Date "2019.07.27"]
[Round "5.19"]
[White "Dicu, Razvan-Stefan"]
[Black "Fluerariu, Radu-Cristian"]
[Result "1/2-1/2"]
[ECO "B06"]
[WhiteElo "2286"]
[BlackElo "2021"]
[Annotator "NA"]
[PlyCount "98"]
[EventDate "2019.07.24"]
[EventType "swiss"]
[EventCountry "ROU"]
[SourceTitle "playchess.com"]
[Source "ChessBase"]
[SourceQuality "1"]
[TimeControl "40/5400+30:900+30"]

1. e4 {[%emt 0:04:06]} d6 {[%emt 0:01:20]} 2. d4 {[%emt 0:00:21]} g6 {[%emt 0:01:21]} 3. Nc3 {[%emt 0:02:41]} Bg7 {[%emt 0:00:30]} 4. Be3 {[%emt 0:01:35]} a6 {[%emt 0:03:09]} 5. h4 {[%emt 0:01:23]} h6 {[%emt 0:05:46]} 6. Qd2 {[%emt 0:02:16]} b5 {[%emt 0:01:18]} 7. O-O-O {[%emt 0:06:52]} Bb7 {[%emt 0:01:34]} 8. f3 {[%emt 0:00:35]} Nd7 {[%emt 0:02:49]} 9. Kb1 {[%emt 0:04:54]} Rc8 {[%emt 0:07:50]} 10. d5 {[%emt 0:05:36]} c5 {[%emt 0:10:53]} 11. dxc6 {[%emt 0:00:20]} Bxc6 {[%emt 0:02:20]} 12. Bd4 {[%emt 0:03:57]} Bxd4 {[%emt 0:12:28]} 13. Qxd4 {[%emt 0:00:09]} Ngf6 {[%emt 0:00:21]} 14. Nge2 {[%emt 0:07:28]} Qb6 {[%emt 0:09:23]} 15. Qxb6 {[%emt 0:00:20]} Nxb6 {[%emt 0:00:01]} 16. Nd4 {[%emt 0:00:05]} Bb7 {[%emt 0:03:54]} 17. Nb3 {[%emt 0:00:11]} Rc7 {[%emt 0:10:27]} 18. Rd4 {[%emt 0:03:37]} Nfd7 {[%emt 0:14:19]} 19. a4 {[%emt 0:13:18]} bxa4 {[%emt 0:00:16]} 20. Nxa4 {[%emt 0:00:53]} O-O {[%emt 0:03:02]} 21. Nxb6 {[%emt 0:00:46]} Nxb6 {[%emt 0:00:01]} 22. Rb4 {[%emt 0:00:06]} Nd7 {[%emt 0:00:54]} 23. c3 {[%emt 0:02:51]} Rb8 {[%emt 0:04:19]} 24. Be2 {[%emt 0:02:07]} Bc8 {[%emt 0:01:45]} 25. Rxb8 {[%emt 0:00:05]} Nxb8 {[%emt 0:00:04]} 26. Kc2 {[%emt 0:00:05]} Kg7 {[%emt 0:00:51]} 27. Ra1 {[%emt 0:00:08]} Kf6 {[%emt 0:01:14]} 28. Ra4 {[%emt 0:02:55]} g5 {[%emt 0:00:24]} 29. hxg5+ {[%emt 0:00:11]} hxg5 {[%emt 0:00:27]} 30. Nd2 {[%emt 0:02:21]} g4 {[%emt 0:01:13]} 31. f4 {[%emt 0:00:43]} e5 {[%emt 0:00:27]} 32. fxe5+ {[%emt 0:00:46]} dxe5 {[%emt 0:00:32]} 33. Nc4 {[%emt 0:00:20]} Bd7 {[%emt 0:00:28]} 34. Rb4 {[%emt 0:00:14]} Bb5 {[%emt 0:00:21]} 35. Ne3 {[%emt 0:00:07]} Kg5 {[%emt 0:00:46]} 36. Bxb5 {[%emt 0:00:24]} axb5 {[%emt 0:00:12]} 37. Rxb5 {[%emt 0:00:18]} Nd7 {[%emt 0:00:45]} 38. b4 {[%emt 0:05:43]} Ra7 {[%emt 0:00:32]} 39. Ra5 {[%emt 0:00:26]} Rxa5 {[%emt 0:00:30]} 40. bxa5 {[%emt 0:00:00]} Kf4 {[%emt 0:00:00]} 41. Nc4 {[%emt 0:03:54]} Nc5 {[%emt 0:03:08]} 42. Nd6 {[%emt 0:02:40]} Kg3 {[%emt 0:08:43]} 43. Nxf7 {[%emt 0:16:04]} Kxg2 {[%emt 0:00:06]} 44. Nxe5 {[%emt 0:00:05]} g3 {[%emt 0:01:43]} 45. Nd3 {[%emt 0:02:04]} Kf3 {[%emt 0:02:22]} 46. e5 {[%emt 0:08:21]} Nxd3 {[%emt 0:02:38]} 47. a6 {[%emt 0:00:04]} g2 {[%emt 0:00:30]} 48. a7 {[%emt 0:00:05]} Ne1+ {[%emt 0:00:30]} 49. Kd2 {[%emt 0:02:59]} g1=Q {[%emt 0:00:04]} 1/2-1/2

[Event "12th Arad Open 2019"]
[Site "Arad"]
[Date "2019.07.27"]
[Round "5.20"]
[White "Albu, George"]
[Black "Pop, Alexandru"]
[Result "1-0"]
[ECO "E46"]
[WhiteElo "2014"]
[BlackElo "2276"]
[Annotator "NA"]
[PlyCount "117"]
[EventDate "2019.07.24"]
[EventType "swiss"]
[EventCountry "ROU"]
[SourceTitle "playchess.com"]
[Source "ChessBase"]
[SourceQuality "1"]
[TimeControl "40/5400+30:900+30"]

1. d4 {[%emt 0:00:00]} Nf6 {[%emt 0:01:34]} 2. c4 {[%emt 0:00:00]} e6 {[%emt 0:00:03]} 3. Nc3 {[%emt 0:00:00]} Bb4 {[%emt 0:00:03]} 4. e3 {[%emt 0:00:00]} O-O {[%emt 0:00:48]} 5. Nge2 {[%emt 0:00:07]} d5 {[%emt 0:06:37]} 6. a3 {[%emt 0:00:09]} Be7 {[%emt 0:00:11]} 7. Nf4 {[%emt 0:00:08]} c6 {[%emt 0:00:23]} 8. Bd3 {[%emt 0:01:28]} Nbd7 {[%emt 0:00:31]} 9. O-O {[%emt 0:00:48]} dxc4 {[%emt 0:00:18]} 10. Bxc4 {[%emt 0:00:08]} e5 {[%emt 0:00:07]} 11. dxe5 {[%emt 0:07:27]} Nxe5 {[%emt 0:01:56]} 12. Be2 {[%emt 0:00:06]} Bf5 {[%emt 0:00:50]} 13. b4 {[%emt 0:01:04]} Qc7 {[%emt 0:12:29]} 14. Bb2 {[%emt 0:16:44]} Rad8 {[%emt 0:00:06]} 15. Qc1 {[%emt 0:10:56]} g5 {[%emt 0:02:42]} 16. Nb5 {[%emt 0:10:46]} Qb8 {[%emt 0:00:22]} 17. Nd4 {[%emt 0:00:09]} Bc8 {[%emt 0:05:36]} 18. Nd3 {[%emt 0:01:34]} Bd6 {[%emt 0:07:01]} 19. Nxe5 {[%emt 0:07:13]} Bxe5 {[%emt 0:00:03]} 20. g3 {[%emt 0:00:07]} Bh3 {[%emt 0:09:35]} 21. Rd1 {[%emt 0:01:16]} Rfe8 {[%emt 0:04:41]} 22. Qc2 {[%emt 0:02:52]} Nd5 {[%emt 0:12:56]} 23. Nf3 {[%emt 0:10:53]} Bxb2 {[%emt 0:01:46]} 24. Qxb2 {[%emt 0:01:08]} h6 {[%emt 0:01:34]} 25. Rd4 {[%emt 0:06:22]} Qc8 {[%emt 0:04:32]} 26. Rad1 {[%emt 0:03:32]} Qf5 {[%emt 0:01:14]} 27. R4d2 {[%emt 0:00:20]} a6 {[%emt 0:08:22]} 28. Nd4 {[%emt 0:02:55]} Qe5 {[%emt 0:00:40]} 29. Nf3 {[%emt 0:01:14]} Qxb2 {[%emt 0:06:59]} 30. Rxb2 {[%emt 0:00:05]} Nc3 {[%emt 0:00:10]} 31. Rxd8 {[%emt 0:00:08]} Rxd8 {[%emt 0:00:19]} 32. Nd4 {[%emt 0:00:17]} b6 {[%emt 0:02:15]} 33. Bf1 {[%emt 0:03:24]} Bxf1 {[%emt 0:00:10]} 34. Kxf1 {[%emt 0:00:05]} c5 {[%emt 0:00:20]} 35. bxc5 {[%emt 0:00:27]} bxc5 {[%emt 0:00:05]} 36. Nf5 {[%emt 0:00:28]} Rd1+ {[%emt 0:00:36]} 37. Kg2 {[%emt 0:00:07]} Rb1 {[%emt 0:04:36]} 38. Rd2 {[%emt 0:01:37]} Rb3 {[%emt 0:01:22]} 39. Rd7 {[%emt 0:04:35]} Rxa3 {[%emt 0:00:36]} 40. Nxh6+ {[%emt 0:00:00]} Kg7 {[%emt 0:00:00]} 41. Nxf7 {[%emt 0:00:38]} Kf6 {[%emt 0:01:51]} 42. Rc7 {[%emt 0:03:42]} Nb5 {[%emt 0:00:22]} 43. Rxc5 {[%emt 0:02:08]} Kxf7 {[%emt 0:00:06]} 44. Rxg5 {[%emt 0:00:03]} Nc3 {[%emt 0:00:59]} 45. h4 {[%emt 0:00:41]} Ra2 {[%emt 0:01:48]} 46. g4 {[%emt 0:01:52]} a5 {[%emt 0:00:25]} 47. h5 {[%emt 0:04:45]} Ne4 {[%emt 0:01:01]} 48. Rf5+ {[%emt 0:00:06]} Kg7 {[%emt 0:00:04]} 49. Kf3 {[%emt 0:00:33]} Nxf2 {[%emt 0:01:17]} 50. g5 {[%emt 0:00:49]} Nd3 {[%emt 0:00:38]} 51. Rd5 {[%emt 0:01:31]} Ne1+ {[%emt 0:01:14]} 52. Ke4 {[%emt 0:01:10]} a4 {[%emt 0:05:07]} 53. Rd7+ {[%emt 0:00:10]} Kf8 {[%emt 0:00:06]} 54. h6 {[%emt 0:02:06]} Rh2 {[%emt 0:00:45]} 55. Ra7 {[%emt 0:00:48]} Kg8 {[%emt 0:04:22]} 56. Kf5 {[%emt 0:01:04]} Rf2+ {[%emt 0:00:27]} 57. Kg6 {[%emt 0:00:17]} Rf8 {[%emt 0:00:25]} 58. h7+ {[%emt 0:01:22]} Kh8 {[%emt 0:00:09]} 59. Kh6 {[%emt 0:00:10]} 1-0

[Event "12th Arad Open 2019"]
[Site "Arad"]
[Date "2019.07.27"]
[Round "5.21"]
[White "Nedelcu, Teodor-Cosmin"]
[Black "Pasti, Aron"]
[Result "1-0"]
[ECO "D35"]
[WhiteElo "1963"]
[BlackElo "2209"]
[Annotator "NA"]
[PlyCount "63"]
[EventDate "2019.07.24"]
[EventType "swiss"]
[EventCountry "ROU"]
[SourceTitle "playchess.com"]
[Source "ChessBase"]
[SourceQuality "1"]
[TimeControl "40/5400+30:900+30"]

1. d4 {[%emt 0:00:00]} Nf6 {[%emt 0:00:00]} 2. c4 {[%emt 0:00:00]} e6 {[%emt 0:00:00]} 3. Nc3 {[%emt 0:00:00]} d5 {[%emt 0:00:00]} 4. cxd5 {[%emt 0:00:12]} exd5 {[%emt 0:00:00]} 5. Bg5 {[%emt 0:00:10]} Be7 {[%emt 0:00:00]} 6. e3 {[%emt 0:00:21]} O-O {[%emt 0:00:01]} 7. Bd3 {[%emt 0:00:19]} c6 {[%emt 0:00:11]} 8. Qc2 {[%emt 0:01:02]} Nbd7 {[%emt 0:00:05]} 9. Nge2 {[%emt 0:00:25]} Re8 {[%emt 0:00:10]} 10. O-O {[%emt 0:01:04]} Nf8 {[%emt 0:00:14]} 11. Rad1 {[%emt 0:00:59]} Ne6 {[%emt 0:11:22]} 12. Bxf6 {[%emt 0:02:10]} Bxf6 {[%emt 0:00:10]} 13. Bxh7+ {[%emt 0:01:09]} Kh8 {[%emt 0:00:58]} 14. Bd3 {[%emt 0:03:19]} g6 {[%emt 0:03:28]} 15. Ng3 {[%emt 0:00:16]} Kg7 {[%emt 0:03:11]} 16. Nce2 {[%emt 0:01:14]} Rh8 {[%emt 0:03:57]} 17. f4 {[%emt 0:01:37]} Nc7 {[%emt 0:12:02]} 18. f5 {[%emt 0:03:15]} g5 {[%emt 0:00:56]} 19. Rf2 {[%emt 0:01:07]} Bd7 {[%emt 0:02:09]} 20. e4 {[%emt 0:01:00]} dxe4 {[%emt 0:01:11]} 21. Nxe4 {[%emt 0:00:12]} Nd5 {[%emt 0:00:39]} 22. Qd2 {[%emt 0:03:35]} Qe7 {[%emt 0:04:23]} 23. Nxf6 {[%emt 0:02:59]} Qxf6 {[%emt 0:00:09]} 24. Ng3 {[%emt 0:01:54]} Rag8 {[%emt 0:14:17]} 25. Ne4 {[%emt 0:01:20]} Qxd4 {[%emt 0:01:55]} 26. Qxg5+ {[%emt 0:00:16]} Kh7 {[%emt 0:01:33]} 27. Qh4+ {[%emt 0:00:36]} Kg7 {[%emt 0:00:04]} 28. Qg3+ Kh6 {[%emt 0:09:43]} 29. Qd6+ {[%emt 0:00:59]} f6 {[%emt 0:00:09]} 30. Bc2 {[%emt 0:02:13]} Qe5 {[%emt 0:01:19]} 31. Qxd7 {[%emt 0:01:02]} Ne3 {[%emt 0:01:15]} 32. Qd2 {[%emt 0:01:08]} 1-0

[Event "12th Arad Open 2019"]
[Site "Arad"]
[Date "2019.07.27"]
[Round "5.22"]
[White "Kersten, Julian"]
[Black "Daianu, Cristian-Clement"]
[Result "1/2-1/2"]
[ECO "A80"]
[WhiteElo "1951"]
[BlackElo "2199"]
[Annotator "NA"]
[PlyCount "44"]
[EventDate "2019.07.24"]
[EventType "swiss"]
[EventCountry "ROU"]
[SourceTitle "playchess.com"]
[Source "ChessBase"]
[SourceQuality "1"]
[TimeControl "40/5400+30:900+30"]

1. d4 {[%emt 0:00:00]} f5 {[%emt 0:00:00]} 2. Bg5 {[%emt 0:02:17]} h6 {[%emt 0:01:26]} 3. Bh4 {[%emt 0:00:46]} g5 {[%emt 0:00:39]} 4. e3 {[%emt 0:00:07]} Nf6 {[%emt 0:00:51]} 5. Bg3 {[%emt 0:00:09]} d6 {[%emt 0:05:44]} 6. h4 {[%emt 0:06:00]} Rg8 {[%emt 0:00:34]} 7. Nh3 {[%emt 0:03:31]} e6 {[%emt 0:05:18]} 8. hxg5 {[%emt 0:09:53]} hxg5 {[%emt 0:01:03]} 9. f4 {[%emt 0:01:15]} g4 {[%emt 0:11:58]} 10. Ng5 {[%emt 0:00:39]} Qe7 {[%emt 0:00:04]} 11. Nd2 {[%emt 0:06:49]} Nc6 {[%emt 0:11:05]} 12. Bc4 {[%emt 0:09:12]} Bd7 {[%emt 0:11:42]} 13. Qe2 {[%emt 0:01:39]} d5 {[%emt 0:09:55]} 14. Bb5 {[%emt 0:09:40]} Nb4 {[%emt 0:14:25]} 15. Bxd7+ {[%emt 0:00:55]} Qxd7 {[%emt 0:00:03]} 16. Nb3 {[%emt 0:01:21]} O-O-O {[%emt 0:03:06]} 17. c3 {[%emt 0:01:07]} Na6 {[%emt 0:03:41]} 18. O-O-O {[%emt 0:01:00]} Re8 {[%emt 0:01:57]} 19. Kb1 {[%emt 0:02:33]} Qa4 {[%emt 0:01:40]} 20. Qc2 {[%emt 0:10:08]} Nb8 {[%emt 0:06:25]} 21. Nd2 {[%emt 0:02:10]} Qa6 {[%emt 0:02:14]} 22. Nb3 {[%emt 0:06:15]} Nbd7 {[%emt 0:01:03]} 1/2-1/2